bitfinex/quotes_SOLUSD_20251013
["timestamp","ask_amount","ask_price","bid_price","bid_amount"]
[1760315780214,5.76022694,197.23,197.17,6.90547424]
[1760315780215,6.90547424,197.23,197.17,6.90547424]
[1760315780447,27.70547424,197.23,197.17,6.90547424]
[1760315780734,20.8,197.25,197.2,17.78194945]
[1760315780940,6.90547424,197.29,197.23,10.87647521]
[1760315781112,6.90547424,197.3,197.24,6.90547424]
[1760315781311,6.90547424,197.31,197.24,6.90547424]
[1760315781622,5.75662613,197.37,197.27,6.90547424]
[1760315781828,6.90547424,197.34,197.28,5.06893755]
[1760315782021,6.90547424,197.33,197.28,5.06893755]
[1760315782221,27.70547424,197.33,197.28,139.16893755]
[1760315782737,6.90547424,197.32,197.28,139.16893755]
[1760315782935,6.90547424,197.35,197.29,7.60547424]
[1760315783119,6.90547424,197.35,197.29,0.7]
[1760315783321,6.90547424,197.34,197.29,0.7]
[1760315783624,31.09435676,197.34,197.29,11.57647521]
[1760315783822,10.29435676,197.36,197.3,5.76842372]
[1760315784028,10.29435676,197.38,197.31,21.17083197]
[1760315784339,2.64793951,197.39,197.34,10.87647521]
[1760315784538,10.29435676,197.4,197.35,0.72]
[1760315784846,10.29435676,197.4,197.35,215.22]
[1760315785038,10.29435676,197.36,197.34,134.1]
[1760315785339,10.29435676,197.35,197.34,134.1]
[1760315785639,10.29435676,197.36,197.34,134.1]
[1760315786017,10.29435676,197.39,197.34,219.56730021]
[1760315786234,10.29435676,197.41,197.35,0.72]
[1760315786634,10.29435676,197.38,197.34,5.06730021]
[1760315786842,10.29435676,197.37,197.34,5.06730021]
[1760315787228,20.8,197.39,197.35,0.72]
[1760315787425,10.29435676,197.41,197.36,11.59647521]
[1760315787622,2.64731797,197.42,197.39,10.29435676]
[1760315787937,10.29435676,197.41,197.37,5.78638548]
[1760315788527,10.29435676,197.43,197.38,11.59647521]
[1760315789137,10.29435676,197.43,197.38,226.09647521]
[1760315789339,10.29435676,197.43,197.38,225.37647521]
[1760315789538,10.29435676,197.43,197.39,0.72]
[1760315789853,10.29435676,197.45,197.4,11.59647521]
[1760315790142,12.941341,197.46,197.42,10.87647521]
[1760315790333,10.29435676,197.43,197.4,214.5]
[1760315790536,10.29435676,197.42,197.4,214.5]
[1760315790926,10.29435676,197.42,197.4,219.5658497]
[1760315791256,10.29435676,197.46,197.41,11.54647521]
[1760315791542,10.29435676,197.46,197.42,0.67]
[1760315791752,10.29435676,197.45,197.42,0.67]
[1760315791920,10.29435676,197.43,197.42,214.5]
[1760315793546,16.04944311,197.43,197.42,214.5]
[1760315793726,10.29435676,197.43,197.42,214.5]
[1760315793926,31.09435676,197.43,197.42,214.5]
[1760315794321,36.84944311,197.43,197.42,134.1]
[1760315794741,36.84944311,197.43,197.35,11.54647521]
[1760315794742,36.84944311,197.43,197.37,10.87647521]
[1760315795040,10.29435676,197.41,197.37,10.87647521]
[1760315795346,10.29435676,197.41,197.38,0.67]
[1760315795537,20.8,197.43,197.39,0.67]
[1760315795850,10.29435676,197.45,197.4,0.67]
[1760315796031,10.29435676,197.45,197.4,5.73585612]
[1760315796234,10.49435676,197.49,197.43,10.29435676]
[1760315796454,0.2,197.49,197.44,21.17083197]
[1760315796630,10.49435676,197.49,197.44,11.54647521]
[1760315796829,10.49435676,197.49,197.44,10.87647521]
[1760315797130,0.2,197.49,197.46,10.87647521]
[1760315797325,10.49435676,197.49,197.46,10.87647521]
[1760315797834,10.49435676,197.49,197.43,10.29435676]
[1760315797835,10.49435676,197.49,197.44,10.87647521]
[1760315798032,10.49435676,197.49,197.45,5.0645733]
[1760315798033,31.09435676,197.48,197.45,5.0645733]
[1760315798532,10.49435676,197.49,197.45,5.0645733]
[1760315798729,10.29435676,197.48,197.44,16.61128717]
[1760315799233,10.29435676,197.45,197.4,10.87647521]
[1760315799446,20.8,197.48,197.41,0.67]
[1760315799746,10.29435676,197.44,197.41,0.67]
[1760315800324,10.29435676,197.45,197.41,5.73559198]
[1760315800524,31.09435676,197.44,197.39,15.94235007]
[1760315800944,10.29435676,197.41,197.37,5.06637182]
[1760315801233,0.69,197.43,197.37,5.06637182]
[1760315801234,10.29435676,197.4,197.37,5.06637182]
[1760315802049,0.69,197.43,197.38,0.67]
[1760315802050,10.29435676,197.43,197.38,0.67]
[1760315802245,10.29435676,197.43,197.39,5.06611277]
[1760315802952,10.29435676,197.43,197.38,5.0663596]
[1760315803164,10.29435676,197.42,197.38,5.0663596]
[1760315803337,10.29435676,197.41,197.36,150.04316322]
[1760315803529,10.29435676,197.39,197.34,139.16722802]
[1760315804446,20.8,197.41,197.36,10.29435676]
[1760315804646,20.8,197.39,197.35,21.17083197]
[1760315804835,20.8,197.39,197.35,11.54647521]
[1760315805232,20.8,197.39,197.35,10.87647521]
[1760315805233,10.98435676,197.39,197.35,10.87647521]
[1760315805643,10.29435676,197.38,197.35,10.87647521]
[1760315805855,10.29435676,197.36,197.29,10.87647521]
[1760315806161,10.29435676,197.3,197.25,12.67407014]
[1760315806368,10.29435676,197.34,197.28,10.29435676]
[1760315806647,10.29435676,197.34,197.28,0.66]
[1760315806850,10.29435676,197.33,197.28,0.66]
[1760315807329,10.29435676,197.3,197.25,5.06970849]
[1760315807653,11.00435676,197.3,197.25,5.06970849]
[1760315807862,10.29435676,197.29,197.24,10.87647521]
[1760315808033,11.00435676,197.3,197.24,10.87647521]
[1760315808229,10.29435676,197.3,197.26,10.87647521]
[1760315808443,20.8,197.31,197.26,10.87647521]
[1760315808659,31.09435676,197.31,197.26,10.87647521]
[1760315808880,20.8,197.31,197.26,10.87647521]
[1760315809160,31.09435676,197.33,197.28,10.87647521]
[1760315809362,20.8,197.33,197.28,21.83083197]
[1760315809538,20.8,197.33,197.29,10.95435676]
[1760315809744,20.8,197.33,197.3,10.87647521]
[1760315809967,0.71,197.37,197.3,10.95435676]
[1760315810182,10.29435676,197.4,197.34,21.17083197]
[1760315810383,12.6616555,197.45,197.27,20.8]
[1760315810384,0.71,197.44,197.37,5.06662613]
[1760315810562,10.29435676,197.43,197.37,5.06662613]
[1760315810969,20.8,197.4,197.37,5.06662613]
[1760315811256,10.29435676,197.41,197.36,10.87647521]
[1760315811457,10.29435676,197.38,197.32,10.29435676]
[1760315811850,10.29435676,197.38,197.3,11.53647521]
[1760315811851,10.29435676,197.38,197.31,22.9643915]
[1760315812274,10.29435676,197.38,197.26,5.72945148]
[1760315812275,20.8,197.35,197.26,5.72945148]
[1760315812452,10.29435676,197.33,197.27,10.87647521]
[1760315813473,10.29435676,197.31,197.27,10.87647521]
[1760315814360,10.29435676,197.3,197.26,5.06945148]
[1760315814554,0.67,197.38,197.27,21.89083197]
[1760315814780,0.67,197.38,197.29,10.87647521]
[1760315814781,10.29435676,197.34,197.29,10.87647521]
[1760315815078,10.29435676,197.34,197.27,21.89083197]
[1760315815253,10.29435676,197.33,197.27,11.59647521]
[1760315815454,10.29435676,197.33,197.27,21.89083197]
[1760315815654,10.29435676,197.33,197.27,11.59647521]
[1760315815863,10.29435676,197.33,197.29,10.87647521]
[1760315816063,10.29435676,197.35,197.31,10.87647521]
[1760315816265,31.09435676,197.36,197.31,11.59647521]
[1760315816479,31.09435676,197.36,197.31,226.09647521]
[1760315816777,31.09435676,197.36,197.31,225.37647521]
[1760315817078,10.29435676,197.35,197.31,225.37647521]
[1760315817782,10.29435676,197.32,197.31,214.5]
[1760315817972,5.73741296,197.34,197.31,214.5]
[1760315818165,10.29435676,197.32,197.31,214.5]
[1760315819177,20.8,197.36,197.31,214.5]
[1760315819361,20.8,197.35,197.31,220.28807715]
[1760315819562,31.09435676,197.35,197.31,220.28807715]
[1760315819757,10.29435676,197.33,197.23,25.35110669]
[1760315819961,10.29435676,197.31,197.26,5.06945148]
[1760315820177,10.29435676,197.31,197.28,10.87647521]
[1760315820379,10.29435676,197.31,197.26,5.06945148]
[1760315820573,10.29435676,197.31,197.27,10.87647521]
[1760315821168,10.29435676,197.3,197.26,5.06945148]
[1760315821392,10.29435676,197.31,197.26,5.78945148]
[1760315821580,20.8,197.34,197.27,10.87647521]
[1760315821885,10.29435676,197.33,197.27,10.87647521]
[1760315822081,0.67,197.35,197.29,10.87647521]
[1760315822285,10.29435676,197.35,197.29,21.17083197]
[1760315822580,0.67,197.37,197.29,21.17083197]
[1760315822766,10.29435676,197.36,197.31,10.87647521]
[1760315822963,10.29435676,197.4,197.33,21.17083197]
[1760315823162,10.29435676,197.4,197.35,10.87647521]
[1760315823759,10.29435676,197.36,197.28,17.74128142]
[1760315823964,10.29435676,197.36,197.3,5.06842372]
[1760315823965,10.29435676,197.33,197.3,5.06842372]
[1760315824166,10.29435676,197.35,197.31,10.87647521]
[1760315824373,10.29435676,197.35,197.31,11.59647521]
[1760315824571,10.29435676,197.33,197.28,5.06893755]
[1760315824768,10.87647521,197.39,197.26,48.63564324]
[1760315825070,10.29435676,197.27,197.23,53.70585611]
[1760315825379,10.29435676,197.27,197.23,54.42585611]
[1760315825775,10.29435676,197.26,197.23,54.42585611]
[1760315826463,10.29435676,197.24,197.17,53.70719775]
[1760315826682,10.29435676,197.19,197.17,5.07155451]
[1760315826965,10.29435676,197.18,197.17,182.73564324]
[1760315827177,10.29435676,197.18,197.12,5.07305194]
[1760315827378,10.29435676,197.15,197.11,5.79319528]
[1760315827585,10.29435676,197.14,197.09,5.07361291]
[1760315827784,10.29435676,197.13,197.09,5.79361291]
[1760315827980,10.29435676,197.12,197.07,134.1]
[1760315828177,10.29435676,197.09,197.05,5.79465478]
[1760315828381,10.29435676,197.1,197.06,0.72]
[1760315828772,10.29435676,197.1,197.07,0.72]
[1760315828971,31.09435676,197.11,197.07,0.72]
[1760315829998,31.09435676,197.16,197.1,28.05184026]
[1760315830171,10.29435676,197.12,197.08,16.6703381]
[1760315830368,20.8,197.16,197.08,16.6703381]
[1760315830369,31.09435676,197.13,197.08,16.6703381]
[1760315830891,31.09435676,197.13,197.08,29.35554207]
[1760315831098,10.29435676,197.16,197.1,21.17083197]
[1760315831305,5.7407214,197.22,197.12,21.17083197]
[1760315831464,10.29435676,197.22,197.17,10.87647521]
[1760315831787,10.29435676,197.21,197.14,11.01435676]
[1760315832087,10.29435676,197.21,197.15,5.07227998]
[1760315832088,10.29435676,197.18,197.15,5.07227998]
[1760315832393,10.29435676,197.3,197.21,10.87647521]
[1760315832718,10.29435676,197.25,197.18,10.87647521]
[1760315833219,10.29435676,197.25,197.19,10.29435676]
[1760315833406,20.8,197.26,197.2,10.29435676]
[1760315833609,31.09435676,197.26,197.2,10.29435676]
[1760315833811,20.8,197.23,197.2,5.07082461]
[1760315833991,20.8,197.23,197.18,10.29435676]
[1760315833992,20.8,197.21,197.18,15.94776612]
[1760315834515,20.8,197.21,197.17,10.87647521]
[1760315834820,20.8,197.21,197.17,21.17083197]
[1760315835193,20.8,197.21,197.17,21.89083197]
[1760315835626,20.8,197.21,197.16,17.75184544]
[1760315835627,7.71753282,197.3,197.21,10.87647521]
[1760315835829,10.29435676,197.27,197.19,10.87647521]
[1760315836001,31.09435676,197.27,197.21,15.94721198]
[1760315836189,10.29435676,197.26,197.21,15.94721198]
[1760315836512,31.09435676,197.27,197.21,15.94721198]
[1760315836716,20.8,197.24,197.18,5.7912717]
[1760315836914,10.29435676,197.22,197.18,5.0712717]
[1760315837102,10.29435676,197.19,197.16,15.94828157]
[1760315837301,10.29435676,197.19,197.16,198.68392481]
[1760315837494,10.29435676,197.18,197.16,182.73564324]
[1760315837894,10.96435676,197.17,197.11,48.63564324]
[1760315838204,10.29435676,197.13,197.11,182.73564324]
[1760315838401,10.29435676,197.12,197.11,134.1]
[1760315838598,20.8,197.09,197.07,182.73564324]
[1760315838935,0.67,197.16,197.08,5.79408159]
[1760315839118,10.29435676,197.1,197.08,182.73564324]
[1760315839333,10.29435676,197.09,197.08,182.73564324]
[1760315839626,20.8,197.09,197.08,182.73564324]
[1760315840201,20.8,197.13,197.09,59.51211845]
[1760315840402,10.29435676,197.16,197.1,11.01435676]
[1760315840606,31.09435676,197.18,197.12,10.29435676]
[1760315840916,20.8,197.18,197.13,10.29435676]
[1760315841115,20.8,197.18,197.13,11.01435676]
[1760315841325,10.29435676,197.19,197.13,0.72]
[1760315841624,1063.98,222.59,197.13,0.72]
[1760315841625,10.29435676,197.14,197.13,182.73564324]
[1760315841834,10.29435676,197.14,197.08,193.61211845]
[1760315842136,5.07155114,197.18,197.08,182.73564324]
[1760315842137,10.29435676,197.09,197.08,182.73564324]
[1760315842300,10.29435676,197.09,197.0,0.1]
[1760315842301,20.8,197.06,197.0,0.1]
[1760315842500,10.29435676,197.01,197.0,0.1]
[1760315842911,10.96435676,197.01,197.0,0.1]
[1760315843523,16.04024123,197.01,197.0,0.1]
[1760315844722,20.8,196.97,196.89,0.1]
[1760315844922,10.29435676,196.9,196.89,0.1]
[1760315845317,10.96435676,196.9,196.82,0.1]
[1760315845632,6.94751001,196.83,196.82,0.1]
[1760315845811,6.94751001,196.84,196.82,0.1]
[1760315846122,20.8,196.87,196.82,0.1]
[1760315846306,6.94751001,196.83,196.82,0.1]
[1760315846509,17.77554919,196.9,196.82,0.1]
[1760315846510,20.8,196.84,196.82,0.1]
[1760315846708,20.8,196.89,196.82,0.1]
[1760315847020,6.94751001,196.83,196.82,0.1]
[1760315847923,20.8,196.89,196.82,0.1]
[1760315848114,6.94751001,196.84,196.82,0.77]
[1760315848315,20.8,196.89,196.82,5.85074848]
[1760315848316,6.94751001,196.86,196.82,5.85074848]
[1760315848512,6.94751001,196.83,196.82,0.1]
[1760315849121,7.61751001,196.83,196.82,0.1]
[1760315849626,5.08104262,196.81,196.79,0.07]
[1760315849804,13.89502002,196.8,196.79,0.07]
[1760315850009,6.94751001,196.73,196.72,5.08333364]
[1760315850208,6.94751001,196.73,196.67,0.67]
[1760315850404,6.94751001,196.72,196.66,0.2]
[1760315850812,0.67,196.76,196.66,0.2]
[1760315851127,6.94751001,196.72,196.66,0.87]
[1760315851630,20.8,196.72,196.71,0.77]
[1760315851806,20.8,196.72,196.71,0.1]
[1760315852121,27.74751001,196.72,196.71,0.1]
[1760315852532,20.8,196.72,196.71,0.1]
[1760315852830,6.94751001,196.72,196.71,0.1]
[1760315853606,7.61751001,196.72,196.71,0.1]
[1760315853813,20.8,196.72,196.71,0.1]
[1760315854012,27.74751001,196.72,196.71,0.1]
[1760315854513,20.8,196.72,196.71,0.77]
[1760315855323,6.94751001,196.73,196.71,0.1]
[1760315855524,6.94751001,196.72,196.71,0.1]
[1760315855718,27.74751001,196.72,196.71,0.1]
[1760315856302,20.8,196.72,196.71,0.1]
[1760315856506,27.74751001,196.72,196.71,0.1]
[1760315857126,23.57921065,196.81,196.71,0.1]
[1760315857127,0.67,196.84,196.72,5.08336722]
[1760315857331,10.87647521,196.82,196.71,0.1]
[1760315857548,6.94751001,196.72,196.71,0.1]
[1760315857831,10.87647521,196.83,196.71,0.1]
[1760315857832,0.67,196.85,196.73,10.87647521]
[1760315858144,5.07923608,196.88,196.76,6.94751001]
[1760315858345,6.94751001,196.83,196.77,11.54647521]
[1760315858510,6.94751001,196.81,196.77,0.67]
[1760315858709,6.94751001,196.8,196.77,0.67]
[1760315859116,6.94751001,196.79,196.75,10.87647521]
[1760315859322,0.67,196.89,196.77,10.87647521]
[1760315859519,6.94751001,196.83,196.78,0.67]
[1760315859714,0.67,196.89,196.79,5.75155902]
[1760315859913,6.94751001,196.85,196.79,12.69906903]
[1760315860113,6.94751001,196.83,196.79,5.08155902]
[1760315860315,6.94751001,196.8,196.75,18.45893819]
[1760315860530,6.94751001,196.77,196.73,15.95949132]
[1760315860838,6.94751001,196.77,196.74,0.67]
[1760315861016,6.94751001,196.75,196.73,5.08301611]
[1760315861527,0.67,196.84,196.71,0.1]
[1760315861528,6.94751001,196.74,196.71,0.1]
[1760315861731,6.94751001,196.72,196.71,0.1]
[1760315862243,20.8,196.77,196.71,5.85362564]
[1760315862424,20.8,196.8,196.71,18.56268974]
[1760315862626,6.94751001,196.76,196.71,5.18362564]
[1760315862932,6.94751001,196.73,196.71,0.1]
[1760315863435,2.65620866,196.77,196.72,0.67]
[1760315863732,6.94751001,196.8,196.74,5.08285046]
[1760315863950,6.94751001,196.81,196.75,0.67]
[1760315864145,2.65541991,196.82,196.75,7.61751001]
[1760315864440,2.65541991,196.82,196.75,0.67]
[1760315864441,6.94751001,196.79,196.75,0.67]
[1760315865214,2.65541991,196.82,196.76,0.66]
[1760315865433,9.60292992,196.82,196.76,0.66]
[1760315865645,6.94751001,196.81,196.77,5.08207551]
[1760315865932,2.65541991,196.82,196.78,0.66]
[1760315866243,6.94751001,196.85,196.79,0.66]
[1760315866614,6.94751001,196.82,196.77,5.08207551]
[1760315866924,6.94751001,196.82,196.78,0.66]
[1760315867109,6.94751001,196.82,196.76,6.94751001]
[1760315867110,23.45502873,196.87,196.79,0.66]
[1760315867308,6.94751001,196.84,196.79,0.66]
[1760315867513,2.65502873,196.87,196.81,17.82398522]
[1760315867719,2.65502873,196.87,196.83,5.08052634]
[1760315868016,2.65502873,196.87,196.84,0.66]
[1760315868331,2.65502873,196.87,196.85,0.66]
[1760315868509,2.65502873,196.87,196.83,5.08052634]
[1760315868715,6.94751001,196.86,196.83,5.08052634]
[1760315869130,9.60253874,196.87,196.84,0.66]
[1760315869314,2.65502873,196.87,196.83,17.78184219]
[1760315869511,2.65502873,196.87,196.83,5.74052634]
[1760315869838,2.65502873,196.87,196.84,0.66]
[1760315870033,2.65502873,196.87,196.85,5.08001016]
[1760315870240,2.65502873,196.87,196.85,5.74001016]
[1760315870631,6.94751001,196.91,196.86,0.66]
[1760315870832,2.65403715,196.9,196.87,0.66]
[1760315871238,2.65403715,196.9,196.85,18.44003556]
[1760315871434,2.65403715,196.9,196.86,0.66]
[1760315871638,6.94751001,196.89,196.86,0.66]
[1760315871835,6.94751001,196.87,196.85,5.08001016]
[1760315872332,6.94751001,196.86,196.83,5.08052634]
[1760315873139,6.94751001,196.84,196.79,12.70348024]
[1760315873341,6.94751001,196.84,196.8,5.74109176]
[1760315873643,6.94751001,196.85,196.81,0.66]
[1760315874050,2.65403715,196.9,196.81,134.1]
[1760315874246,6.94751001,196.88,196.83,5.08052634]
[1760315874566,2.65403715,196.9,196.85,10.87647521]
[1760315874860,6.94751001,196.95,196.88,6.94751001]
[1760315875158,2.65361371,196.94,196.89,0.65]
[1760315875458,6.94751001,196.96,196.9,7.59751001]
[1760315875632,6.94751001,196.96,196.86,10.87647521]
[1760315875633,6.94751001,196.97,196.91,7.59751001]
[1760315875833,2.65331345,196.95,196.92,0.65]
[1760315876030,6.94751001,196.95,196.89,7.59751001]
[1760315876371,6.94751001,196.93,196.9,5.07872016]
[1760315876658,6.94751001,196.94,196.9,5.07872016]
[1760315876844,6.94751001,196.93,196.88,0.65]
[1760315877039,28.53030127,196.97,196.86,6.94751001]
[1760315877040,6.94751001,196.91,196.86,17.77913237]
[1760315877259,6.94751001,196.92,196.87,0.65]
[1760315877440,6.94751001,196.91,196.87,0.65]
[1760315877755,6.94751001,196.9,196.87,0.65]
[1760315878554,6.94751001,196.89,196.83,0.65]
[1760315878755,5.07754163,196.95,196.84,10.87647521]
[1760315878931,2.65330318,196.97,196.87,6.94751001]
[1760315878932,6.94751001,196.93,196.87,6.94751001]
[1760315879249,6.94751001,196.94,196.88,0.65]
[1760315879556,6.94751001,196.93,196.88,0.65]
[1760315879754,6.94751001,196.94,196.89,0.65]
[1760315879965,2.65330318,196.97,196.92,6.94751001]
[1760315880132,0.2,196.99,196.89,10.87647521]
[1760315880443,6.94751001,196.9,196.75,19.99999999]
[1760315880647,24.12337633,196.98,196.68,6.94751001]
[1760315880648,6.94751001,196.86,196.82,0.65]
[1760315880959,6.94751001,196.84,196.79,10.87647521]
[1760315881134,6.94751001,196.84,196.8,0.65]
[1760315881335,6.94751001,196.81,196.76,5.0823338]
[1760315881548,6.94751001,196.79,196.74,0.65]
[1760315881733,6.94751001,196.75,196.72,5.08336722]
[1760315881938,0.67,196.82,196.72,18.44178527]
[1760315882137,6.94751001,196.75,196.72,5.73336722]
[1760315882335,6.94751001,196.73,196.66,12.91205936]
[1760315882558,6.94751001,196.72,196.66,12.91205936]
[1760315882975,20.8,196.75,196.66,13.56205936]
[1760315883281,6.94751001,196.72,196.66,0.2]
[1760315883435,6.94751001,196.67,196.66,0.2]
[1760315883639,20.8,196.7,196.66,0.2]
[1760315883840,27.74751001,196.7,196.66,5.28485954]
[1760315884065,6.94751001,196.72,196.66,5.93485954]
[1760315884263,6.94751001,196.71,196.66,5.93485954]
[1760315884558,0.67,196.7,196.66,0.2]
[1760315884750,6.94751001,196.67,196.66,0.2]
[1760315885356,6.94751001,196.68,196.66,0.2]
[1760315885558,21.47,196.77,196.66,5.93490076]
[1760315885752,6.94751001,196.68,196.66,0.2]
[1760315885947,20.8,196.73,196.66,0.2]
[1760315886249,6.94751001,196.71,196.66,0.2]
[1760315886441,6.94751001,196.71,196.66,17.9971323]
[1760315887165,6.94751001,196.7,196.66,17.9971323]
[1760315887574,6.94751001,196.68,196.66,85.68483697]
[1760315887747,20.8,196.73,196.66,85.68483697]
[1760315887748,6.94751001,196.67,196.66,85.68483697]
[1760315888076,6.94751001,196.67,196.66,0.2]
[1760315888652,6.94751001,196.68,196.67,5.08465958]
[1760315888869,6.94751001,196.69,196.67,5.08465958]
[1760315889054,20.8,196.77,196.68,0.65]
[1760315889252,6.94751001,196.72,196.68,81.05]
[1760315889446,19.84908323,196.83,196.68,81.05]
[1760315889447,6.94751001,196.75,196.69,0.65]
[1760315890362,6.94751001,196.73,196.67,43.21960644]
[1760315890568,6.94751001,196.71,196.67,17.79630853]
[1760315890766,6.94751001,196.68,196.67,5.08465958]
[1760315890951,20.8,196.76,196.67,12.03216959]
[1760315891159,6.94751001,196.81,196.75,6.94751001]
[1760315891472,0.67,196.8,196.69,11.52647521]
[1760315892145,0.67,196.87,196.75,10.87647521]
[1760315892381,10.87647521,196.91,196.76,0.65]
[1760315892673,6.94751001,196.92,196.77,17.7872643]
[1760315892674,6.94751001,196.82,196.77,17.7872643]
[1760315892876,6.94751001,196.84,196.78,7.59751001]
[1760315893174,6.94751001,196.84,196.77,24.73477431]
[1760315894187,0.67,196.9,196.79,6.94751001]
[1760315894389,6.94751001,196.84,196.8,0.65]
[1760315894569,6.94751001,196.85,196.81,0.65]
[1760315894754,6.94751001,196.86,196.82,17.78274565]
[1760315895162,0.67,196.95,196.83,0.65]
[1760315895453,6.94751001,196.9,196.83,7.59751001]
[1760315896086,6.94751001,196.88,196.83,0.65]
[1760315896259,6.94751001,196.84,196.82,5.08078447]
[1760315896454,7.61751001,196.83,196.78,5.08165441]
[1760315896663,6.94751001,196.79,196.78,5.08165441]
[1760315896978,0.67,196.83,196.73,0.65]
[1760315896979,0.67,196.83,196.74,17.78997661]
[1760315897152,6.94751001,196.76,196.74,17.78997661]
[1760315897477,6.94751001,196.79,196.75,0.65]
[1760315897950,6.94751001,196.78,196.75,0.65]
[1760315898269,6.94751001,196.78,196.74,17.78997661]
[1760315898474,6.94751001,196.78,196.74,18.43997661]
[1760315899769,6.94751001,196.79,196.74,18.43997661]
[1760315900082,6.94751001,196.79,196.74,12.70712615]
[1760315900376,6.94751001,196.82,196.75,0.65]
[1760315900556,6.94751001,196.83,196.75,0.65]
[1760315900754,6.94751001,196.84,196.78,6.94751001]
[1760315900976,6.94751001,196.8,196.74,13.35712615]
[1760315901174,6.94751001,196.79,196.74,13.35712615]
[1760315901489,6.94751001,196.78,196.74,12.70712615]
[1760315901682,6.94751001,196.78,196.75,0.65]
[1760315901866,0.67,196.84,196.76,0.65]
[1760315901867,6.94751001,196.8,196.76,0.65]
[1760315902064,6.94751001,196.92,196.8,17.78455284]
[1760315902280,0.67,196.93,196.82,6.94751001]
[1760315902484,6.94751001,196.9,196.83,6.94751001]
[1760315902676,2.65337633,196.98,196.87,10.87647521]
[1760315902981,6.94751001,196.97,196.89,10.87647521]
[1760315903166,6.94751001,196.96,196.89,10.87647521]
[1760315903374,2.65337633,196.98,196.9,0.65]
[1760315903668,2.65337633,196.98,196.95,6.94751001]
[1760315904063,2.65337633,196.98,196.95,7.59751001]
[1760315904268,9.60088634,196.98,196.96,5.07717303]
[1760315904871,2.65337633,196.98,196.96,5.07717303]
[1760315905866,2.65337633,196.98,196.97,11.05082022]
[1760315906060,10.33082022,197.04,196.97,11.05082022]
[1760315906265,2.65248745,197.02,196.98,5.79665752]
[1760315907578,10.33082022,197.0,196.98,5.07665752]
[1760315907880,10.33082022,197.01,196.98,5.07665752]
[1760315908087,12.98330767,197.02,196.98,5.07665752]
[1760315908456,2.65248745,197.02,196.98,5.07665752]
[1760315908689,1e-08,196.99,196.98,27.00395295]
[1760315909088,0.2,197.07,196.99,10.87647521]
[1760315909385,0.2,197.07,197.04,17.76289078]
[1760315910181,0.2,197.07,197.04,28.093711]
[1760315910501,0.2,197.07,197.04,17.76289078]
[1760315910978,10.33082022,197.06,197.04,17.76289078]
[1760315911379,10.53082022,197.07,197.04,17.76289078]
[1760315911690,0.2,197.07,197.03,5.07536923]
[1760315912191,10.53082022,197.07,197.03,17.76379231]
[1760315912391,10.33082022,197.04,197.03,17.76379231]
[1760315912597,10.33082022,197.06,197.03,17.76379231]
[1760315912774,10.33082022,197.05,197.03,17.76379231]
[1760315913089,11.00082022,197.04,197.0,17.76616575]
[1760315913291,10.33082022,197.01,197.0,17.76616575]
[1760315913494,10.33082022,197.01,197.0,5.07614213]
[1760315913696,10.33082022,197.01,196.95,5.07743082]
[1760315913881,10.33082022,196.98,196.95,5.07743082]
[1760315914593,10.33082022,196.98,196.95,17.77100787]
[1760315914803,10.33082022,197.02,196.96,11.05082022]
[1760315915594,10.33082022,197.01,196.96,0.72]
[1760315915787,10.33082022,197.01,196.97,17.76920342]
[1760315915988,10.33082022,197.0,196.97,18.48920342]
[1760315916176,10.33082022,197.01,196.97,18.48920342]
[1760315916375,20.8,197.05,196.98,0.72]
[1760315916577,10.33082022,197.02,196.98,0.72]
[1760315917097,10.33082022,197.01,196.97,17.76920342]
[1760315917294,10.33082022,197.01,196.98,0.72]
[1760315917773,10.33082022,197.01,196.99,17.76739935]
[1760315918779,0.2,197.07,197.0,11.05082022]
[1760315918981,10.53082022,197.07,197.0,11.05082022]
[1760315919299,10.33082022,197.06,197.0,11.05082022]
[1760315919499,10.33082022,197.04,196.99,43.14939843]
[1760315919675,10.33082022,197.03,196.99,43.14939843]
[1760315919876,10.33082022,197.01,196.99,17.76739935]
[1760315920077,10.33082022,197.03,196.99,17.76739935]
[1760315920380,10.33082022,197.06,197.0,0.72]
[1760315920892,10.53082022,197.07,197.01,10.33082022]
[1760315921070,0.2,197.07,197.02,21.92729543]
[1760315921274,0.2,197.07,197.03,11.05082022]
[1760315921671,0.2,197.07,197.04,0.72]